fUSD/lending_fUSD_20260703
["ID","MTS","AMOUNT","RATE_DAILY","PERIOD"]
[426930067,1783023033000,-500.0,0.00020687,2]
[426930068,1783023033000,-22790.32244731,0.00020688,2]
[426930071,1783023033000,-258.49742669,0.00020688,2]
[426930069,1783023033000,-31692.7502929,0.00020688,2]
[426930018,1783023033000,-500.0,0.00020687,2]
[426930056,1783023033000,-500.0,0.00020687,2]
[426930045,1783023033000,-500.0,0.00020687,2]
[426930048,1783023033000,-500.0,0.00020687,2]
[426930032,1783023033000,-500.0,0.00020687,2]
[426930025,1783023033000,-500.0,0.00020687,2]
[426930027,1783023033000,-500.0,0.00020687,2]
[426930028,1783023033000,-500.0,0.00020687,2]
[426930029,1783023033000,-500.0,0.00020687,2]
[426930037,1783023033000,-500.0,0.00020687,2]
[426930034,1783023033000,-500.0,0.00020687,2]
[426930070,1783023033000,-457.24022354,0.00020688,2]
[426930030,1783023033000,-500.0,0.00020687,2]
[426930043,1783023033000,-500.0,0.00020687,2]
[426930035,1783023033000,-500.0,0.00020687,2]
[426930033,1783023033000,-500.0,0.00020687,2]
[426930031,1783023033000,-500.0,0.00020687,2]
[426930036,1783023033000,-500.0,0.00020687,2]
[426930039,1783023033000,-500.0,0.00020687,2]
[426930038,1783023033000,-500.0,0.00020687,2]
[426930041,1783023033000,-500.0,0.00020687,2]
[426930049,1783023033000,-324.1431838,0.00020687,2]
[426930050,1783023033000,-500.0,0.00020687,2]
[426930051,1783023033000,-500.0,0.00020687,2]
[426930040,1783023033000,-500.0,0.00020687,2]
[426930042,1783023033000,-500.0,0.00020687,2]
[426930026,1783023033000,-500.0,0.00020687,2]
[426930022,1783023033000,-500.0,0.00020687,2]
[426930087,1783023038000,-10101.47597986,0.00020688,2]
[426930086,1783023038000,-1453.55163602,0.00020688,2]
[426930085,1783023038000,-16827.036363,0.00020688,2]
[426930084,1783023038000,-1321.35905436,0.00020688,2]
[426930090,1783023038000,-2698.76008068,0.00020688,2]
[426930089,1783023038000,-364.36298507,0.00020688,2]
[426930091,1783023038000,-5019.45516199,0.00020688,2]
[426930088,1783023038000,-7246.53427956,0.00020688,2]
[426930119,1783023039000,-151.0,0.00021999,2]
[426930130,1783023039000,-151.0,0.00021999,2]
[426930132,1783023039000,-151.0,0.00021999,2]
[426930135,1783023039000,-151.0,0.00021999,2]
[426930141,1783023039000,-151.0,0.00021999,2]
[426930145,1783023039000,-151.0,0.00021999,2]
[426930137,1783023039000,-151.0,0.00021999,2]
[426930149,1783023039000,-166.76895015,0.000221,2]
[426930139,1783023039000,-151.0,0.00021999,2]
[426930152,1783023039000,-2029.8539641,0.000221,2]
[426930147,1783023039000,-151.0,0.00021999,2]
[426930143,1783023039000,-151.0,0.00021999,2]
[426930156,1783023039000,-476.36084391,0.000221,2]
[426930180,1783023039000,-311.3253,0.00022373,7]
[426930171,1783023039000,-476.36084391,0.000223,2]
[426930158,1783023039000,-160.0,0.00022118,2]
[426930164,1783023039000,-166.76895015,0.000223,2]
[426930162,1783023039000,-4000.0,0.00022292,2]
[426930166,1783023039000,-2029.8539641,0.000223,2]
[426930168,1783023039000,-400.0,0.000223,2]
[426930160,1783023039000,-160.0,0.00022118,2]
[426930193,1783023039000,-476.36084391,0.000225,2]
[426930189,1783023039000,-2029.8539641,0.000225,2]
[426930191,1783023039000,-400.0,0.000225,2]
[426930185,1783023039000,-1056.59,0.00022466,2]
[426930154,1783023039000,-400.0,0.000221,2]
[426930115,1783023039000,-151.0,0.00021999,2]
[426930128,1783023039000,-151.0,0.00021999,2]
[426930112,1783023039000,-151.0,0.00021999,2]
[426930092,1783023039000,-106709.61406902,0.00020688,2]
[426930094,1783023039000,-150.0,0.00020876,2]
[426930093,1783023039000,-4000.0,0.00020737,2]
[426930095,1783023039000,-150.0,0.00020876,120]
[426930097,1783023039000,-500.0,0.00020961,2]
[426930098,1783023039000,-250.0,0.00020999,2]
[426930100,1783023039000,-1895.71,0.00021134,2]
[426930099,1783023039000,-150.0,0.00021,2]
[426930107,1783023039000,-5000.0,0.00021918,2]
[426930096,1783023039000,-210.28917335,0.00020956,2]
[426930104,1783023039000,-939.26,0.00021423,2]
[426930103,1783023039000,-4948.17,0.0002137,2]
[426930101,1783023039000,-4000.0,0.00021255,2]
[426930102,1783023039000,-528.54,0.000213,2]
[426930106,1783023039000,-500.0,0.00021781,2]
[426930105,1783023039000,-4000.0,0.00021773,2]
[426930108,1783023039000,-150.0,0.00021918,2]
[426930121,1783023039000,-151.0,0.00021999,2]
[426930110,1783023039000,-500.0,0.00021918,2]
[426930125,1783023039000,-151.0,0.00021999,2]
[426930123,1783023039000,-151.0,0.00021999,2]
[426930109,1783023039000,-536.0,0.00021918,2]
[426930111,1783023039000,-151.0,0.00021999,2]
[426930113,1783023039000,-151.0,0.00021999,2]
[426930127,1783023039000,-151.0,0.00021999,2]
[426930117,1783023039000,-151.0,0.00021999,2]
[426930182,1783023039000,-1012.39,0.00022466,2]
[426930173,1783023039000,-230.09849338,0.00022373,7]
[426930195,1783023039000,-2029.8539641,0.000228,2]
[426930249,1783023039000,-151.0,0.00024,2]
[426930253,1783023039000,-157.0,0.00024,2]
[426930256,1783023039000,-500.0,0.00024073,2]
[426930255,1783023039000,-500.0,0.00024073,2]
[426930251,1783023039000,-250.0,0.00024,2]
[426930257,1783023039000,-600.0,0.00024073,2]
[426930259,1783023039000,-150.0,0.00024164,2]
[426930269,1783023039000,-190.0,0.00025,2]
[426930260,1783023039000,-7457.58,0.00024174,2]
[426930261,1783023039000,-2029.8539641,0.000242,2]
[426930263,1783023039000,-155.37716995,0.00024397,2]
[426930258,1783023039000,-600.0,0.00024073,3]
[426930264,1783023039000,-169.71,0.00024658,2]
[426930265,1783023039000,-1000.0,0.00024658,2]
[426930268,1783023039000,-158.0,0.00025,2]
[426930267,1783023039000,-155.0,0.00025,2]
[426930266,1783023039000,-223.25472855,0.00024667,2]
[426930271,1783023039000,-223.25472855,0.00025,2]
[426930270,1783023039000,-313.0,0.00025,2]
[426930273,1783023039000,-250.0,0.00025,2]
[426930272,1783023039000,-151.0,0.00025,2]
[426930275,1783023039000,-2284.53293367,0.00025001,2]
[426930276,1783023039000,-180.3246139,0.00025105,2]
[426930274,1783023039000,-231.0,0.00025,2]
[426930198,1783023039000,-400.0,0.000228,2]
[426930246,1783023039000,-313.0,0.00024,2]
[426930248,1783023039000,-156.0,0.00024,2]
[426930262,1783023039000,-223.25472855,0.00024333,2]
[426930247,1783023039000,-223.25472855,0.00024,2]
[426930250,1783023039000,-439.0,0.00024,7]
[426930200,1783023039000,-476.36084391,0.000228,2]
[426930204,1783023039000,-2029.8539641,0.00023,2]
[426930212,1783023039000,-150.0,0.00023014,2]
[426930210,1783023039000,-223.25472855,0.00023,2]
[426930202,1783023039000,-4000.0,0.0002281,2]
[426930208,1783023039000,-476.36084391,0.00023,2]
[426930206,1783023039000,-400.0,0.00023,2]
[426930222,1783023039000,-176.53491181,0.00023099,2]
[426930215,1783023039000,-500.0,0.00023099,2]
[426930217,1783023039000,-577.72670713,0.00023099,2]
[426930219,1783023039000,-500.0,0.00023099,2]
[426930224,1783023039000,-468758.7159,0.000231,120]
[426930187,1783023039000,-166.76895015,0.000225,2]
[426930228,1783023039000,-223.25472855,0.00023333,2]
[426930226,1783023039000,-2029.8539641,0.000232,2]
[426930254,1783023039000,-486.56900621,0.00024073,2]
[426930245,1783023039000,-190.0,0.00024,2]
[426930239,1783023039000,-154.98233742,0.00023877,120]
[426930241,1783023039000,-2029.8539641,0.000239,2]
[426930244,1783023039000,-158.0,0.00024,2]
[426930252,1783023039000,-231.0,0.00024,2]
[426930236,1783023039000,-2029.8539641,0.000237,2]
[426930234,1783023039000,-223.25472855,0.00023667,2]
[426930232,1783023039000,-2029.8539641,0.000235,2]
[426930230,1783023039000,-1786.64,0.00023479,2]
[426930243,1783023039000,-155.0,0.00024,2]
[426930322,1783023040000,-307.26,0.00026731,4]
[426930321,1783023040000,-152.0,0.00026698,4]
[426930315,1783023040000,-167.70920342,0.00026366,2]
[426930311,1783023040000,-153.65441995,0.00026366,2]
[426930314,1783023040000,-223.88669113,0.00026366,2]
[426930319,1783023040000,-299.99,0.00026591,12]
[426930317,1783023040000,-155.37716989,0.00026587,2]
[426930316,1783023040000,-199.62335448,0.00026366,2]
[426930313,1783023040000,-198.81645311,0.00026366,2]
[426930333,1783023040000,-235.29913528,0.0002705,2]
[426930318,1783023040000,-14241.98,0.00026591,2]
[426930326,1783023040000,-250.0,0.00027,2]
[426930328,1783023040000,-309.60655787,0.0002705,2]
[426930324,1783023040000,-190.0,0.00027,2]
[426930327,1783023040000,-231.0,0.00027,2]
[426930325,1783023040000,-313.0,0.00027,2]
[426930331,1783023040000,-185.96576695,0.0002705,2]
[426930332,1783023040000,-258.68200852,0.0002705,2]
[426930329,1783023040000,-206.6925228,0.0002705,2]
[426930334,1783023040000,-421.84317328,0.0002705,2]
[426930338,1783023040000,-371.01751019,0.0002705,2]
[426930336,1783023040000,-388.12782392,0.0002705,2]
[426930337,1783023040000,-410.44378032,0.0002705,2]
[426930335,1783023040000,-313.15402596,0.0002705,2]
[426930309,1783023040000,-360.6492278,0.00026366,2]
[426930323,1783023040000,-158.0,0.00027,2]
[426930320,1783023040000,-150.0,0.00026641,2]
[426930278,1783023040000,-501.0,0.00025237,10]
[426930307,1783023040000,-196.57276011,0.00026279,2]
[426930277,1783023040000,-152.0,0.00025142,3]
[426930341,1783023040000,-266.60282122,0.00027117,2]
[426930279,1783023040000,-506.0,0.00025315,2]
[426930280,1783023040000,-223.25472855,0.00025333,2]
[426930292,1783023040000,-151.0,0.00026,2]
[426930282,1783023040000,-294.0,0.0002552,2]
[426930293,1783023040000,-250.0,0.00026,2]
[426930294,1783023040000,-231.0,0.00026,2]
[426930295,1783023040000,-839.23,0.00026063,2]
[426930281,1783023040000,-150.0,0.00025373,2]
[426930291,1783023040000,-223.25472855,0.00026,2]
[426930289,1783023040000,-190.0,0.00026,2]
[426930290,1783023040000,-313.0,0.00026,2]
[426930284,1783023040000,-223.25472855,0.00025667,2]
[426930288,1783023040000,-158.0,0.00026,2]
[426930286,1783023040000,-1852.42,0.00025708,2]
[426930287,1783023040000,-164.61468301,0.00026,2]
[426930296,1783023040000,-150.0,0.00026086,5]
[426930299,1783023040000,-210.92158664,0.00026213,2]
[426930297,1783023040000,-154.80327893,0.00026213,2]
[426930304,1783023040000,-190.31663693,0.00026279,2]
[426930300,1783023040000,-194.06391196,0.00026213,2]
[426930306,1783023040000,-213.30109391,0.00026279,2]
[426930301,1783023040000,-185.50875509,0.00026213,2]
[426930302,1783023040000,-205.22189016,0.00026213,2]
[426930298,1783023040000,-156.57701298,0.00026213,2]
[426930308,1783023040000,-165.41971631,0.00026279,2]
[426930310,1783023040000,-203.83363862,0.00026366,2]
[426930340,1783023040000,-218.19778097,0.00027117,2]
[426930339,1783023040000,-180.21,0.00027062,120]
[426930344,1783023040000,-380.63327387,0.00027117,2]
[426930373,1783023040000,-150.94152769,0.00027397,2]
[426930372,1783023040000,-3326.15,0.00027397,10]
[426930374,1783023040000,-301.88305538,0.00027397,2]
[426930376,1783023040000,-205.43008531,0.00027397,2]
[426930380,1783023040000,-887.95,0.00027397,20]
[426930381,1783023040000,-9999.99,0.00027397,2]
[426930379,1783023040000,-9999.99,0.00027397,2]
[426930382,1783023040000,-31587.91,0.00027397,10]
[426930384,1783023040000,-422.15,0.00027397,2]
[426930383,1783023040000,-9552.31,0.00027397,5]
[426930385,1783023040000,-9999.99,0.00027397,2]
[426930387,1783023040000,-9999.99,0.00027397,2]
[426930375,1783023040000,-452.82458307,0.00027397,2]
[426930392,1783023040000,-413.3850456,0.00027608,2]
[426930393,1783023040000,-305.0985428,0.00027608,2]
[426930389,1783023040000,-1000.0,0.000275,7]
[426930391,1783023040000,-464.4098368,0.00027608,2]
[426930390,1783023040000,-203.55116765,0.00027608,2]
[426930395,1783023040000,-164.22257492,0.00027608,2]
[426930396,1783023040000,-517.36401704,0.00027608,2]
[426930394,1783023040000,-432.94070561,0.00027608,2]
[426930398,1783023040000,-357.03717013,0.00027608,2]
[426930400,1783023040000,-632.76475992,0.00027608,2]
[426930399,1783023040000,-469.73103894,0.00027608,2]
[426930397,1783023040000,-470.59827055,0.00027608,2]
[426930343,1783023040000,-544.35331149,0.00027117,2]
[426930388,1783023040000,-150.99,0.00027397,2]
[426930377,1783023040000,-617.26,0.00027397,2]
[426930386,1783023040000,-4999.99,0.00027397,2]
[426930364,1783023040000,-237.18007815,0.00027241,2]
[426930342,1783023040000,-169.74676424,0.00027117,2]
[426930378,1783023040000,-999.99,0.00027397,2]
[426930345,1783023040000,-283.17620486,0.00027117,2]
[426930357,1783023040000,-447.77338226,0.00027207,2]
[426930353,1783023040000,-540.97384169,0.00027207,2]
[426930348,1783023040000,-224.03841985,0.00027117,2]
[426930349,1783023040000,-252.95785521,0.00027117,2]
[426930347,1783023040000,-393.14552022,0.00027117,2]
[426930346,1783023040000,-426.60218782,0.00027117,2]
[426930352,1783023040000,-407.66727724,0.00027207,2]
[426930356,1783023040000,-397.63290622,0.00027207,2]
[426930351,1783023040000,-251.0,0.00027129,5]
[426930355,1783023040000,-307.30883989,0.00027207,2]
[426930354,1783023040000,-230.95302907,0.00027207,2]
[426930350,1783023040000,-330.83943263,0.00027117,2]
[426930366,1783023040000,-1500.0,0.00027397,2]
[426930363,1783023040000,-1067.58406073,0.00027239,5]
[426930359,1783023040000,-292.16782015,0.00027207,2]
[426930368,1783023040000,-300.0,0.00027397,2]
[426930365,1783023040000,-4497.61529555,0.00027335,2]
[426930362,1783023040000,-154.98233742,0.00027207,120]
[426930361,1783023040000,-204.12687834,0.00027207,2]
[426930367,1783023040000,-160.0,0.00027397,10]
[426930360,1783023040000,-399.24670897,0.00027207,2]
[426930358,1783023040000,-335.41840684,0.00027207,2]
[426930369,1783023040000,-2774.52,0.00027397,10]
[426930370,1783023040000,-4789.66,0.00027397,10]
[426930371,1783023040000,-3991.38,0.00027397,10]
[426930438,1783023041000,-584.33564031,0.00027767,2]
[426930441,1783023041000,-408.25375667,0.00027767,2]
[426930442,1783023041000,-210.74107152,0.00027767,2]
[426930439,1783023041000,-598.87006345,0.00027767,2]
[426930435,1783023041000,-671.66007339,0.00027767,2]
[426930433,1783023041000,-596.44935934,0.00027767,2]
[426930434,1783023041000,-181.8222043,0.00027767,2]
[426930432,1783023041000,-603.76611076,0.00027767,2]
[426930444,1783023041000,-292.0,0.0002784,2]
[426930443,1783023041000,-276.78469097,0.00027767,2]
[426930437,1783023041000,-503.12761026,0.00027767,2]
[426930436,1783023041000,-410.86017061,0.00027767,2]
[426930440,1783023041000,-239.94227655,0.00027767,2]
[426930459,1783023041000,-258.0,0.00029,2]
[426930448,1783023041000,-313.0,0.00028,2]
[426930455,1783023041000,-155.37716989,0.00028776,2]
[426930450,1783023041000,-231.0,0.00028,2]
[426930451,1783023041000,-215.21189417,0.00028193,10]
[426930452,1783023041000,-152.0,0.00028254,5]
[426930449,1783023041000,-250.0,0.00028,2]
[426930446,1783023041000,-158.0,0.00028,2]
[426930454,1783023041000,-612.93854249,0.00028767,10]
[426930453,1783023041000,-1000.0,0.00028767,10]
[426930447,1783023041000,-190.0,0.00028,2]
[426930457,1783023041000,-203.0,0.00029,2]
[426930467,1783023041000,-5681.622,0.00029851,2]
[426930426,1783023041000,-721.29845559,0.00027767,2]
[426930445,1783023041000,-150.0,0.00027973,2]
[426930429,1783023041000,-460.96325984,0.00027767,2]
[426930406,1783023041000,-239.58861894,0.00027676,2]
[426930427,1783023041000,-432.11591781,0.00027767,2]
[426930462,1783023041000,-282395.0,0.00029333,20]
[426930405,1783023041000,-299.39033585,0.00027608,2]
[426930402,1783023041000,-556.52626528,0.00027608,2]
[426930403,1783023041000,-582.19173588,0.00027608,2]
[426930404,1783023041000,-615.66567048,0.00027608,2]
[426930401,1783023041000,-228.34329624,0.00027608,2]
[426930408,1783023041000,-339.49352847,0.00027676,2]
[426930418,1783023041000,-496.25914894,0.00027676,2]
[426930410,1783023041000,-436.39556194,0.00027676,2]
[426930407,1783023041000,-533.20564245,0.00027676,2]
[426930409,1783023041000,-230.10383159,0.00027676,2]
[426930411,1783023041000,-272.17665575,0.00027676,2]
[426930412,1783023041000,-570.9499108,0.00027676,2]
[426930413,1783023041000,-639.90328173,0.00027676,2]
[426930416,1783023041000,-448.07683969,0.00027676,2]
[426930415,1783023041000,-589.71828032,0.00027676,2]
[426930417,1783023041000,-505.91571042,0.00027676,2]
[426930414,1783023041000,-566.35240973,0.00027676,2]
[426930419,1783023041000,-240.68752877,0.00027676,2]
[426930421,1783023041000,-152.54040332,0.00027676,2]
[426930420,1783023041000,-212.93692286,0.00027676,2]
[426930423,1783023041000,-265.56293765,0.00027676,2]
[426930422,1783023041000,-243.40959163,0.00027676,2]
[426930424,1783023041000,-236.71764492,0.00027676,2]
[426930425,1783023041000,-611.50091586,0.00027767,2]
[426930431,1783023041000,-316.7797948,0.00027767,2]
[426930428,1783023041000,-461.90605814,0.00027767,2]
[426930430,1783023041000,-208.00779828,0.00027767,2]
[426930460,1783023041000,-250.0,0.00029,2]
[426930490,1783023041000,-173.89116102,0.00031507,15]
[426930466,1783023041000,-3652.0,0.00029851,2]
[426930495,1783023041000,-150.0,0.00031818,2]
[426930503,1783023041000,-1362.0,0.00031838,2]
[426930498,1783023041000,-150.0,0.00031838,2]
[426930504,1783023041000,-1231.0,0.00031838,2]
[426930496,1783023041000,-150.0,0.00031818,2]
[426930494,1783023041000,-642.78,0.00031781,7]
[426930499,1783023041000,-150.0,0.00031838,2]
[426930500,1783023041000,-3566.0,0.00031838,2]
[426930497,1783023041000,-150.0,0.00031838,2]
[426930502,1783023041000,-1278.0,0.00031838,2]
[426930506,1783023041000,-161.79,0.00032,7]
[426930516,1783023041000,-4365.9,0.00032829,14]
[426930505,1783023041000,-7898.664,0.00032,2]
[426930507,1783023041000,-4365.9,0.00032195,14]
[426930515,1783023041000,-623.5,0.00032734,7]
[426930510,1783023041000,-170.59,0.00032361,2]
[426930509,1783023041000,-282395.0,0.00032234,20]
[426930512,1783023041000,-275.74,0.00032636,3]
[426930511,1783023041000,-150.0,0.00032383,2]
[426930508,1783023041000,-7457.58,0.00032232,7]
[426930514,1783023041000,-647.43,0.00032734,7]
[426930513,1783023041000,-300.0,0.0003273,7]
[426930519,1783023041000,-600.0,0.00032877,120]
[426930517,1783023041000,-3652.0,0.00032851,2]
[426930522,1783023041000,-3683.95,0.0003311,25]
[426930518,1783023041000,-9000.0,0.00032858,5]
[426930456,1783023041000,-169.0,0.00029,2]
[426930493,1783023041000,-667.45,0.00031781,7]
[426930501,1783023041000,-223.0,0.00031838,2]
[426930521,1783023041000,-152.0,0.00032921,8]
[426930488,1783023041000,-389.37725346,0.00031309,2]
[426930458,1783023041000,-323.0,0.00029,2]
[426930461,1783023041000,-264.04189177,0.00029272,2]
[426930463,1783023041000,-150.0,0.00029372,2]
[426930464,1783023041000,-161.79,0.000294,7]
[426930465,1783023041000,-152.0,0.00029809,6]
[426930468,1783023041000,-939.26,0.00029992,2]
[426930477,1783023041000,-2994.464,0.00030557,26]
[426930476,1783023041000,-154.98233742,0.00030537,120]
[426930475,1783023041000,-282395.0,0.000303,20]
[426930474,1783023041000,-4365.9,0.00030294,7]
[426930470,1783023041000,-242.13173095,0.00030065,3]
[426930471,1783023041000,-150.5,0.00030137,30]
[426930472,1783023041000,-195.0,0.0003016,2]
[426930478,1783023041000,-163.506,0.00030557,26]
[426930473,1783023041000,-668.0,0.00030275,5]
[426930484,1783023041000,-155.37716989,0.00030966,2]
[426930469,1783023041000,-2738.68707108,0.00030001,30]
[426930487,1783023041000,-282395.0,0.00031267,20]
[426930483,1783023041000,-4365.9,0.00030928,7]
[426930482,1783023041000,-160.0,0.00030914,7]
[426930491,1783023041000,-4365.9,0.00031561,14]
[426930485,1783023041000,-10832.73616175,0.00031,2]
[426930492,1783023041000,-286.78,0.00031617,3]
[426930486,1783023041000,-160.0,0.00031,120]
[426930489,1783023041000,-152.0,0.00031365,7]
[426930481,1783023041000,-161.79,0.000309,7]
[426930480,1783023041000,-150.0,0.00030841,2]
[426930479,1783023041000,-5528.0,0.000307,5]
[426930520,1783023041000,-161.79,0.000329,30]
[426930563,1783023042000,-5800.0,0.00033532,2]
[426930562,1783023042000,-5800.0,0.00033523,2]
[426930560,1783023042000,-5800.0,0.00033506,2]
[426930561,1783023042000,-5800.0,0.00033515,2]
[426930558,1783023042000,-5800.0,0.0003349,2]
[426930557,1783023042000,-5800.0,0.00033481,2]
[426930566,1783023042000,-2329.0,0.00033539,10]
[426930567,1783023042000,-5800.0,0.00033541,2]
[426930556,1783023042000,-150.0,0.00033477,30]
[426930565,1783023042000,-250.0,0.00033539,7]
[426930555,1783023042000,-151.0,0.00033474,2]
[426930551,1783023042000,-4365.9,0.00033463,14]
[426930580,1783023042000,-300.0,0.00033542,2]
[426930559,1783023042000,-5800.0,0.00033498,2]
[426930568,1783023042000,-25.00632994,0.00033542,2]
[426930574,1783023042000,-300.0,0.00033542,2]
[426930573,1783023042000,-300.0,0.00033542,2]
[426930571,1783023042000,-300.0,0.00033542,2]
[426930572,1783023042000,-300.0,0.00033542,2]
[426930576,1783023042000,-300.0,0.00033542,2]
[426930569,1783023042000,-300.0,0.00033542,2]
[426930570,1783023042000,-1101.26754386,0.00033542,2]
[426930575,1783023042000,-300.0,0.00033542,2]
[426930578,1783023042000,-300.0,0.00033542,2]
[426930577,1783023042000,-300.0,0.00033542,2]
[426930552,1783023042000,-5800.0,0.00033464,2]
[426930564,1783023042000,-358.0,0.00033539,14]
[426930550,1783023042000,-150.0,0.00033383,30]
[426930537,1783023042000,-150.0,0.00033288,30]
[426930543,1783023042000,-167.1866142,0.00033288,30]
[426930579,1783023042000,-300.0,0.00033542,2]
[426930528,1783023042000,-489.59,0.0003311,25]
[426930524,1783023042000,-2472.18,0.0003311,25]
[426930526,1783023042000,-218.54,0.0003311,2]
[426930527,1783023042000,-201.11,0.0003311,2]
[426930529,1783023042000,-395.56,0.0003311,25]
[426930523,1783023042000,-3362.05,0.0003311,25]
[426930531,1783023042000,-264.04189175,0.00033118,2]
[426930541,1783023042000,-157.0980069,0.00033288,30]
[426930530,1783023042000,-156.2,0.0003311,2]
[426930532,1783023042000,-155.37716989,0.00033155,2]
[426930533,1783023042000,-282395.0,0.00033201,20]
[426930553,1783023042000,-5800.0,0.00033472,2]
[426930534,1783023042000,-200.0,0.00033205,10]
[426930538,1783023042000,-150.0,0.00033288,30]
[426930539,1783023042000,-154.32701166,0.00033288,30]
[426930536,1783023042000,-150.0,0.00033288,30]
[426930540,1783023042000,-150.0,0.00033288,30]
[426930542,1783023042000,-150.0,0.00033288,30]
[426930545,1783023042000,-150.0,0.00033288,30]
[426930546,1783023042000,-358.0,0.000333,14]
[426930549,1783023042000,-26414.9767,0.00033374,2]
[426930544,1783023042000,-150.0,0.00033288,30]
[426930547,1783023042000,-367.05313802,0.000333,14]
[426930548,1783023042000,-2000.0,0.00033374,2]
[426930554,1783023042000,-150.0,0.00033473,7]
[426930535,1783023042000,-259.72419602,0.00033288,30]
[426930581,1783023042000,-300.0,0.00033542,2]
[426930525,1783023042000,-2283.87,0.0003311,25]
[426930583,1783023042000,-495.35167751,0.00033542,2]
[426930624,1783023042000,-569.07827579,0.00033542,2]
[426930619,1783023042000,-300.0,0.00033542,2]
[426930615,1783023042000,-1807.51296116,0.00033542,2]
[426930623,1783023042000,-300.0,0.00033542,2]
[426930618,1783023042000,-564.57560998,0.00033542,2]
[426930616,1783023042000,-300.0,0.00033542,2]
[426930620,1783023042000,-597.3150425,0.00033542,2]
[426930617,1783023042000,-300.0,0.00033542,2]
[426930621,1783023042000,-300.0,0.00033542,2]
[426930625,1783023042000,-300.0,0.00033542,2]
[426930622,1783023042000,-311.25771399,0.00033542,2]
[426930627,1783023042000,-300.0,0.00033542,2]
[426930635,1783023042000,-454.31833835,0.00033542,2]
[426930626,1783023042000,-685.81931695,0.00033542,2]
[426930632,1783023042000,-300.0,0.00033542,2]
[426930631,1783023042000,-514.02377053,0.00033542,2]
[426930636,1783023042000,-300.0,0.00033542,2]
[426930637,1783023042000,-300.0,0.00033542,2]
[426930629,1783023042000,-300.0,0.00033542,2]
[426930634,1783023042000,-300.0,0.00033542,2]
[426930630,1783023042000,-300.0,0.00033542,2]
[426930628,1783023042000,-300.0,0.00033542,2]
[426930633,1783023042000,-584.85636615,0.00033542,2]
[426930638,1783023042000,-300.0,0.00033542,2]
[426930639,1783023042000,-300.0,0.00033542,2]
[426930582,1783023042000,-300.0,0.00033542,2]
[426930641,1783023042000,-300.0,0.00033542,2]
[426930614,1783023042000,-954.40977015,0.00033542,2]
[426930611,1783023042000,-300.0,0.00033542,2]
[426930640,1783023042000,-300.0,0.00033542,2]
[426930609,1783023042000,-529.6723478,0.00033542,2]
[426930607,1783023042000,-300.0,0.00033542,2]
[426930589,1783023042000,-300.0,0.00033542,2]
[426930584,1783023042000,-300.0,0.00033542,2]
[426930586,1783023042000,-300.0,0.00033542,2]
[426930588,1783023042000,-607.91868214,0.00033542,2]
[426930587,1783023042000,-300.0,0.00033542,2]
[426930590,1783023042000,-300.0,0.00033542,2]
[426930592,1783023042000,-300.0,0.00033542,2]
[426930601,1783023042000,-302.19910179,0.00033542,2]
[426930596,1783023042000,-730.2023839,0.00033542,2]
[426930597,1783023042000,-300.0,0.00033542,2]
[426930595,1783023042000,-300.0,0.00033542,2]
[426930591,1783023042000,-300.0,0.00033542,2]
[426930585,1783023042000,-300.0,0.00033542,2]
[426930593,1783023042000,-300.0,0.00033542,2]